bitfinex/quotes_SOLUSD_20250726
["timestamp","ask_amount","ask_price","bid_price","bid_amount"]
[1753528976839,79.59107656,188.27,188.26,1e-08]
[1753528977459,83.11259685,188.27,188.26,1e-08]
[1753528978139,83.1140334,188.27,188.26,1e-08]
[1753528981569,78.96035103,188.27,188.26,1e-08]
[1753528981743,83.1140334,188.27,188.26,1e-08]
[1753528982461,87.03234092,188.27,188.26,1e-08]
[1753528983065,91.25703952,188.27,188.26,1e-08]
[1753528984743,91.28703952,188.27,188.26,1e-08]
[1753528984958,101.28703952,188.27,188.26,1e-08]
[1753528985191,42.78468397,188.23,188.22,0.06]
[1753528985360,96.92663894,188.23,188.22,0.06]
[1753528985670,101.73032131,188.23,188.22,0.06]
[1753528986144,104.50797604,188.23,188.22,0.06]
[1753528986760,109.82062545,188.23,188.22,0.06]
[1753528987159,68.31062545,188.23,188.22,0.06]
[1753528987466,109.11062545,188.23,188.22,0.06]
[1753528988854,109.25278702,188.23,188.22,0.06]
[1753528989969,47.51442068,188.23,188.22,0.06]
[1753528990151,40.07315632,188.23,188.22,0.19]
[1753528990355,80.77315632,188.23,188.22,0.19]
[1753528991070,80.77315632,188.23,188.22,0.06]
[1753528991565,84.92683869,188.23,188.22,0.06]
[1753528992868,80.77315632,188.23,188.22,0.06]
[1753528993178,84.84683869,188.23,188.22,0.06]
[1753528993366,81.37315632,188.23,188.22,0.06]
[1753528993668,89.06279511,188.23,188.22,0.06]
[1753528994258,109.77506536,188.23,188.22,0.06]
[1753528994859,109.77570391,188.23,188.22,0.06]
[1753528996374,21.95287784,188.2,188.19,0.2]
[1753528996580,67.13689538,188.2,188.19,0.2]
[1753528996879,70.6728518,188.2,188.19,0.2]
[1753528997453,21.95287784,188.19,188.18,0.06]
[1753528997688,31.16819387,188.08,188.07,0.19]
[1753528998157,31.69852904,188.08,188.07,0.19]
[1753528998365,5.16819387,188.04,188.03,0.2]
[1753528998955,5.16819387,188.04,188.03,0.39]
[1753529000776,5.16819387,188.04,188.03,4.54368237]
[1753529001286,5.16819387,188.04,188.03,0.2]
[1753529001287,10.48621131,188.04,188.03,0.2]
[1753529002056,36.48621131,188.04,188.03,0.2]
[1753529002259,15.85022885,188.04,188.03,0.2]
[1753529002974,15.17022885,188.04,188.03,0.2]
[1753529003155,15.85022885,188.04,188.03,0.2]
[1753529003360,50.83221141,188.04,188.03,0.2]
[1753529003661,51.11653455,188.04,188.03,0.2]
[1753529003862,56.43455199,188.04,188.03,0.2]
[1753529004071,69.74555359,188.04,188.03,0.2]
[1753529004273,56.43455199,188.04,188.03,0.2]
[1753529004478,52.01654648,188.04,188.03,0.2]
[1753529004786,5.69852904,188.04,188.03,0.39]
[1753529005109,31.16819387,188.04,188.03,0.39]
[1753529006286,31.16819387,188.04,188.03,7.9541]
[1753529006692,31.16819387,188.04,188.03,8.1441]
[1753529007063,40.63989368,188.04,188.03,0.2]
[1753529007265,41.85022885,188.04,188.03,0.2]
[1753529009201,41.99239042,188.04,188.03,0.2]
[1753529009772,35.85221141,188.04,188.03,0.2]
[1753529009986,31.69852904,188.04,188.03,0.2]
[1753529010187,31.16819387,188.04,188.03,0.2]
[1753529011299,5.16819387,188.04,188.03,4.54368237]
[1753529013591,5.16819387,188.04,188.03,0.2]
[1753529016690,11.15621131,188.04,188.03,0.2]
[1753529017297,15.30989368,188.04,188.03,0.2]
[1753529018496,32.37890079,188.04,188.03,1e-08]
[1753529019185,179.97890079,188.04,188.03,1e-08]
[1753529019400,183.8687422,188.04,188.03,1e-08]
[1753529019913,193.8687422,188.04,188.03,1e-08]
[1753529020784,224.5687422,188.04,188.03,1e-08]
[1753529021588,220.65890079,188.04,188.03,1e-08]
[1753529022625,26.0,188.01,187.99,0.06]
[1753529022927,47.95287784,187.96,187.95,0.06]
[1753529023101,98.04684112,187.96,187.95,0.06]
[1753529023304,5.16819387,187.85,187.83,7.8258]
[1753529023487,5.16819387,187.85,187.84,4.35368237]
[1753529023688,5.16819387,187.86,187.84,9.67736209]
[1753529023902,5.16819387,187.86,187.85,4.34368237]
[1753529024811,5.16819387,187.88,187.85,4.34368237]
[1753529025012,5.16819387,187.87,187.86,0.19]
[1753529025194,5.16819387,187.87,187.86,4.34368237]
[1753529025706,5.16819387,187.87,187.86,9.66679532]
[1753529027011,5.16819387,187.88,187.86,9.66679532]
[1753529027211,5.16819387,187.88,187.87,4.15368237]
[1753529027406,5.16819387,187.88,187.87,4.34368237]
[1753529028101,5.16819387,187.88,187.87,4.15368237]
[1753529028620,5.16819387,187.87,187.85,5.51334916]
[1753529028798,5.16819387,187.87,187.86,0.19]
[1753529029115,5.16819387,187.87,187.86,4.15368237]
[1753529029325,5.83819387,187.87,187.84,0.2]
[1753529029621,35.32187624,187.85,187.84,0.2]
[1753529029792,9.32187624,187.85,187.84,0.2]
[1753529029992,31.83819387,187.85,187.84,0.2]
[1753529030296,5.16819387,187.85,187.84,0.2]
[1753529030713,9.99187624,187.85,187.84,0.2]
[1753529031021,5.83819387,187.85,187.84,0.2]
[1753529031319,10.49159019,187.85,187.84,0.2]
[1753529031507,31.16819387,187.85,187.84,4.35368237]
[1753529032112,31.16819387,187.85,187.84,0.2]
[1753529033018,31.83819387,187.85,187.84,0.2]
[1753529033225,41.84560773,187.85,187.84,0.2]
[1753529033521,57.90560773,187.85,187.84,0.2]
[1753529034193,6.36852904,187.85,187.84,0.2]
[1753529034395,5.16819387,187.85,187.84,4.35368237]
[1753529034792,31.16819387,187.85,187.84,4.35368237]
[1753529034993,5.16819387,187.85,187.84,9.86736209]
[1753529035251,5.16819387,187.85,187.84,0.39]
[1753529035393,5.16819387,187.85,187.84,4.54368237]
[1753529035593,5.16819387,187.85,187.84,4.35368237]
[1753529035794,5.16819387,187.85,187.84,4.54368237]
[1753529036933,5.16819387,187.85,187.84,7.06949461]
[1753529037437,5.16819387,187.85,187.84,5.71367972]
[1753529037757,5.16819387,187.85,187.84,12.39317433]
[1753529038732,5.16819387,187.86,187.84,6.87949461]
[1753529038907,5.16819387,187.86,187.85,6.67949461]
[1753529039812,5.16819387,187.85,187.84,0.2]
[1753529040122,5.16819387,187.85,187.84,6.87949461]
[1753529040324,5.16819387,187.85,187.84,12.20317433]
[1753529042651,5.16819387,187.88,187.84,12.39317433]
[1753529042858,5.16819387,187.88,187.87,8.28039461]
[1753529044227,5.16819387,187.88,187.87,13.60322422]
[1753529044428,5.16819387,187.88,187.87,13.79322422]
[1753529045292,5.16819387,187.9,187.87,13.79322422]
[1753529045423,5.16819387,187.9,187.89,6.67949461]
[1753529045630,5.16819387,187.9,187.89,6.86949461]
[1753529046152,5.16819387,187.9,187.89,6.67949461]
[1753529046656,5.84819387,187.9,187.89,6.67949461]
[1753529047145,5.16819387,187.9,187.89,6.67949461]
[1753529047522,5.84819387,187.9,187.89,6.67949461]
[1753529047723,5.16819387,187.9,187.89,6.67949461]
[1753529049459,5.84819387,187.9,187.85,6.4219]
[1753529049656,5.84819387,187.9,187.84,0.73236797]
[1753529049657,5.16819387,187.85,187.84,0.2]
[1753529049854,5.16819387,187.85,187.84,6.87949461]
[1753529050061,5.16819387,187.86,187.84,6.87949461]
[1753529050353,5.16819387,187.86,187.84,5.52365202]
[1753529050557,5.84819387,187.85,187.84,0.2]
[1753529050752,38.52768848,187.85,187.84,0.2]
[1753529050957,42.41676409,187.85,187.84,0.2]
[1753529051256,38.52768848,187.85,187.84,0.2]
[1753529051456,43.8510848,187.85,187.84,0.2]
[1753529051654,37.17159019,187.85,187.84,0.2]
[1753529051844,37.70192536,187.85,187.84,0.2]
[1753529052845,44.38141997,187.85,187.84,0.2]
[1753529053931,37.70192536,187.85,187.84,0.2]
[1753529054160,37.17159019,187.85,187.84,0.2]
[1753529054643,31.84819387,187.85,187.84,0.2]
[1753529054844,31.16819387,187.85,187.84,0.2]
[1753529055050,44.38141997,187.85,187.84,0.2]
[1753529055370,37.70192536,187.85,187.84,0.2]
[1753529055541,31.84819387,187.85,187.84,0.2]
[1753529056478,37.17159019,187.85,187.84,0.2]
[1753529056840,31.84819387,187.85,187.84,0.2]
[1753529057274,37.17159019,187.85,187.84,0.2]
[1753529058065,37.17159019,187.85,187.84,0.977312]
[1753529059664,15.34945807,187.85,187.84,0.977312]
[1753529059862,11.17159019,187.85,187.84,0.977312]
[1753529061167,15.34945807,187.85,187.84,0.977312]
[1753529061367,11.17159019,187.85,187.84,0.977312]
[1753529062158,5.16819387,187.85,187.84,0.977312]
[1753529062472,5.84819387,187.85,187.84,0.977312]
[1753529062651,11.17159019,187.85,187.84,0.977312]
[1753529063050,15.34945807,187.85,187.84,0.977312]
[1753529064163,5.84819387,187.85,187.84,0.977312]
[1753529064375,5.16819387,187.85,187.84,0.977312]
[1753529064679,8.09901647,187.86,187.84,5.34517988]
[1753529064680,5.16819387,187.86,187.84,5.34517988]
[1753529064873,42.62,187.9,187.85,4.36786788]
[1753529064874,5.16819387,187.87,187.85,4.36786788]
[1753529065049,5.16819387,187.86,187.85,0.19]
[1753529065251,5.16819387,187.85,187.84,5.15517988]
[1753529065454,5.16819387,187.86,187.84,5.15517988]
[1753529065646,5.16819387,187.85,187.84,0.977312]
[1753529066261,5.84819387,187.85,187.84,0.977312]
[1753529066471,5.16819387,187.85,187.84,0.977312]
[1753529066663,5.16819387,187.85,187.84,5.15517988]
[1753529067067,5.16819387,187.85,187.84,0.977312]
[1753529067269,5.16819387,187.85,187.84,5.15517988]
[1753529067469,5.16819387,187.85,187.84,0.977312]
[1753529068960,5.16819387,187.85,187.84,5.15517988]
[1753529069391,5.16819387,187.85,187.84,0.977312]
[1753529069569,5.84819387,187.85,187.84,0.977312]
[1753529069961,5.16819387,187.85,187.84,0.977312]
[1753529071270,5.16819387,187.85,187.84,0.257312]
[1753529071464,31.16819387,187.85,187.84,0.257312]
[1753529071863,31.16819387,187.85,187.84,5.13517988]
[1753529072054,31.16819387,187.85,187.84,0.257312]
[1753529072261,31.84819387,187.85,187.84,0.257312]
[1753529072476,15.34945807,187.85,187.84,0.257312]
[1753529073156,11.17159019,187.85,187.84,0.257312]
[1753529073662,15.87979324,187.85,187.84,0.257312]
[1753529074566,23.29956152,187.85,187.84,0.257312]
[1753529074880,19.39442708,187.85,187.84,0.257312]
[1753529075264,15.87979324,187.85,187.84,0.257312]
[1753529075880,15.87979324,187.85,187.84,0.079152]
[1753529076256,58.25979324,187.85,187.84,0.079152]
[1753529077073,11.70192536,187.85,187.84,0.079152]
[1753529077282,53.55159019,187.85,187.84,0.079152]
[1753529077575,47.50819387,187.85,187.84,0.079152]
[1753529078175,53.52159019,187.85,187.84,0.079152]
[1753529078374,48.19819387,187.85,187.84,0.139152]
[1753529078683,48.22819387,187.85,187.84,0.139152]
[1753529079992,53.55159019,187.85,187.84,0.139152]
[1753529080906,48.08819387,187.85,187.84,0.139152]
[1753529081201,5.88819387,187.85,187.84,0.139152]
[1753529081410,48.04819387,187.85,187.84,0.139152]
[1753529081594,58.07979324,187.85,187.84,0.139152]
[1753529081985,15.91979324,187.85,187.84,0.139152]
[1753529082301,58.05979324,187.85,187.84,0.139152]
[1753529083187,78.49731363,187.85,187.84,1e-08]
[1753529084778,78.6394752,187.85,187.84,1e-08]
[1753529085178,81.41605327,187.85,187.84,1e-08]
[1753529085700,81.41605327,187.85,187.82,1e-08]
[1753529085701,26.41506886,187.83,187.82,1e-08]
[1753529085901,72.45607888,187.83,187.82,1e-08]
[1753529086094,73.14607888,187.83,187.82,1e-08]
[1753529087389,78.47004203,187.83,187.82,1e-08]
[1753529089181,42.29217415,187.83,187.82,1e-08]
[1753529089414,92.24566731,187.83,187.82,1e-08]
[1753529089614,82.24566731,187.83,187.82,1e-08]
[1753529089994,82.24524667,187.83,187.82,1e-08]
[1753529090214,40.36524667,187.83,187.82,1e-08]
[1753529090424,82.16524667,187.83,187.82,1e-08]
[1753529090713,77.98737879,187.83,187.82,1e-08]
[1753529090890,78.27004203,187.83,187.82,1e-08]
[1753529091385,82.16562803,187.83,187.82,1e-08]
[1753529091789,40.36562803,187.83,187.82,1e-08]
[1753529092011,78.21004203,187.83,187.82,1e-08]
[1753529093300,82.10725584,187.83,187.82,1e-08]
[1753529093595,36.47004203,187.83,187.82,1e-08]
[1753529093800,57.57036007,187.83,187.82,1e-08]
[1753529094201,61.07898667,187.83,187.82,1e-08]
[1753529095392,63.86115645,187.83,187.82,1e-08]
[1753529095592,58.99328857,187.83,187.82,1e-08]
[1753529095792,63.17115645,187.83,187.82,1e-08]
[1753529097856,59.66252985,187.83,187.82,1e-08]
[1753529098613,17.98252985,187.83,187.82,1e-08]
[1753529098927,58.97219468,187.83,187.82,1e-08]
[1753529099216,52.01215702,187.83,187.82,1e-08]
[1753529099526,56.1900249,187.83,187.82,1e-08]
[1753529099727,5.16819387,187.83,187.82,1e-08]
[1753529100026,5.16819387,187.83,187.82,0.72000001]
[1753529100027,46.64819387,187.83,187.82,0.72000001]
[1753529100225,5.16819387,187.83,187.82,0.72000001]
[1753529100411,5.16819387,187.83,187.82,4.89786789]
[1753529101017,0.03,187.83,187.82,4.89786789]
[1753529101919,0.03,187.83,187.82,10.2221145]
[1753529102315,0.03,187.83,187.82,27.00679847]
[1753529102509,0.03,187.85,187.83,16.78468397]
[1753529102709,0.03,187.85,187.84,4.17786788]
[1753529102913,0.03,187.85,187.84,4.89786788]
[1753529103111,0.03,187.85,187.84,0.72]
[1753529104326,5.19819387,187.85,187.84,4.89786788]
[1753529104719,0.03,187.85,187.84,4.89786788]
[1753529104904,0.03,187.85,187.84,0.72]
[1753529105098,0.03,187.85,187.84,4.89786788]
[1753529105917,0.03,187.85,187.84,10.2215476]
[1753529107516,5.19819387,187.85,187.84,0.72]
[1753529107915,0.03,187.85,187.84,4.89786788]
[1753529108111,5.19819387,187.85,187.84,4.89786788]
[1753529108911,0.03,187.85,187.84,4.89786788]
[1753529110434,5.19819387,187.85,187.84,4.89786788]
[1753529111217,5.19819387,187.85,187.84,0.72]
[1753529111624,5.19819387,187.85,187.84,4.89786788]
[1753529111932,0.03,187.85,187.84,4.89786788]
[1753529112136,5.19819387,187.85,187.84,4.89786788]
[1753529112517,5.19819387,187.85,187.84,10.2215476]
[1753529112848,5.19819387,187.85,187.84,4.89786788]
[1753529113641,5.19819387,187.85,187.83,4.17786788]
[1753529114020,0.03,187.85,187.84,4.83786788]
[1753529114922,0.03,187.85,187.84,10.1615476]
[1753529116941,0.03,187.85,187.83,0.53239631]
[1753529117119,5.19819387,187.85,187.82,4.17786789]
[1753529117309,0.03,187.85,187.82,4.83786789]
[1753529117510,5.19819387,187.85,187.82,4.83786789]
[1753529118131,5.19819387,187.85,187.82,10.16209162]
[1753529118835,5.19819387,187.85,187.84,4.17786788]
[1753529120012,5.19819387,187.85,187.84,9.5015476]
[1753529120208,0.03,187.85,187.84,9.5015476]
[1753529120409,0.03,187.85,187.84,10.1615476]
[1753529121837,0.03,187.85,187.84,26.94623157]
[1753529123748,0.03,187.85,187.84,27.23055471]
[1753529124217,0.03,187.85,187.84,5.32367972]
[1753529124424,0.03,187.85,187.83,16.78468397]
[1753529124733,0.03,187.85,187.82,0.53242467]
[1753529125041,5.19819387,187.85,187.84,4.17786788]
[1753529125239,5.16819387,187.84,187.83,4.17786788]
[1753529126250,5.19819387,187.85,187.83,4.17786788]
[1753529126423,5.19819387,187.85,187.84,4.17786788]
[1753529126619,5.16819387,187.84,187.83,4.17786788]
[1753529128351,5.16819387,187.84,187.82,1e-08]
[1753529128650,5.16819387,187.84,187.83,4.17786788]
[1753529129029,5.19819387,187.85,187.83,4.17786788]
[1753529129226,26.03,187.85,187.84,4.83786788]
[1753529129433,0.03,187.85,187.84,4.83786788]
[1753529129635,26.03,187.85,187.84,4.83786788]
[1753529130948,26.03,187.85,187.84,4.17786788]
[1753529131334,0.03,187.85,187.84,4.17786788]
[1753529131838,0.03,187.85,187.84,9.5015476]
[1753529133946,0.03,187.85,187.84,10.1615476]
[1753529135055,0.03,187.85,187.83,5.3239452]
[1753529135240,0.03,187.85,187.84,4.17786788]
[1753529137246,0.03,187.85,187.84,45.63786788]
[1753529138166,0.03,187.85,187.84,50.9615476]
[1753529139657,0.03,187.85,187.84,51.6215476]
[1753529139841,0.03,187.85,187.84,68.93859954]
[1753529141837,0.03,187.85,187.84,69.22292268]
[1753529142652,0.03,187.85,187.84,156.62292268]
[1753529142967,0.03,187.85,187.84,156.09055471]
[1753529144553,0.03,187.87,187.84,68.69055471]
[1753529144767,0.03,187.87,187.86,21.24687499]
[1753529144956,0.03,187.87,187.86,62.40687499]
[1753529145143,0.03,187.87,187.86,63.06687499]
[1753529145465,0.03,187.87,187.86,68.38998794]
[1753529146568,0.03,187.91,187.86,169.09777033]
[1753529146758,0.03,187.91,187.9,4.17786788]
[1753529147077,0.03,187.91,187.9,45.81006585]
[1753529147670,0.03,187.91,187.9,51.13204562]
[1753529150237,0.03,187.91,187.9,73.03892061]
[1753529152041,0.69,187.91,187.9,4.17786788]
[1753529152244,0.69,187.91,187.9,45.09786788]
[1753529152467,5.85819387,187.91,187.89,40.88]
[1753529152672,0.66,187.9,187.89,40.88]
[1753529154690,5.9819926,187.9,187.83,8.0276]
[1753529154886,5.16819387,187.87,187.83,0.06]
[1753529155075,5.16819387,187.87,187.84,40.8]
[1753529155275,5.82819387,187.86,187.84,40.8]
[1753529155482,4.17786788,187.89,187.83,0.06]
[1753529155483,31.16819387,187.84,187.83,0.06]
[1753529155781,5.82819387,187.85,187.83,4.23786788]
[1753529155976,5.16819387,187.84,187.83,0.06]
[1753529156597,5.82819387,187.84,187.83,0.06]
[1753529157186,5.82819387,187.84,187.83,4.23786788]
[1753529157380,31.16819387,187.85,187.83,4.23786788]
[1753529157583,31.16819387,187.85,187.83,0.06]
[1753529157934,31.82819387,187.85,187.84,4.17786788]
[1753529158200,5.82819387,187.85,187.84,4.17786788]
[1753529159298,0.66,187.85,187.84,4.17786788]
[1753529159894,5.82819387,187.85,187.84,4.17786788]
[1753529162112,0.66,187.85,187.84,4.17786788]
[1753529163005,0.66,187.85,187.83,0.06]
[1753529163192,0.66,187.85,187.84,4.17786788]
[1753529164325,5.16819387,187.84,187.83,0.06]
[1753529164827,5.82819387,187.84,187.83,4.23786788]
[1753529165187,0.66,187.86,187.83,9.56183103]
[1753529165450,5.82819387,187.86,187.84,4.17786788]
[1753529165592,0.66,187.86,187.84,4.17786788]
[1753529166005,5.82819387,187.86,187.84,4.17786788]
[1753529166214,5.82819387,187.86,187.85,4.17786788]
[1753529166387,31.16819387,187.87,187.85,4.17786788]
[1753529167022,5.88819387,187.86,187.85,4.17786788]
[1753529167507,31.16819387,187.87,187.85,4.17786788]
[1753529167691,5.16819387,187.86,187.85,4.17786788]
[1753529167887,5.16819387,187.89,187.85,21.65255185]
[1753529168113,5.16819387,187.89,187.88,4.17786788]
[1753529168296,5.16819387,187.88,187.86,0.53231129]
[1753529168612,5.16819387,187.88,187.87,4.17786788]
[1753529169211,5.16819387,187.88,187.87,9.50069749]
[1753529170897,5.16819387,187.89,187.87,9.50069749]
[1753529171111,5.16819387,187.89,187.88,4.17786788]
[1753529171723,5.88819387,187.9,187.88,9.50036237]
[1753529171903,5.16819387,187.9,187.89,4.17786788]
[1753529172104,5.16819387,187.9,187.88,5.32249449]
[1753529172300,5.19819387,187.91,187.89,4.17786788]
[1753529172504,5.16819387,187.9,187.88,5.32249449]
[1753529172709,5.91819387,187.91,187.89,4.17786788]
[1753529173018,5.16819387,187.9,187.89,4.17786788]
[1753529173216,5.91819387,187.91,187.89,4.17786788]
[1753529173606,5.91819387,187.91,187.89,9.50005416]
[1753529173916,5.91819387,187.91,187.9,4.17786788]
[1753529174896,5.19819387,187.91,187.9,4.17786788]
[1753529175621,0.03,187.91,187.9,9.49984765]
[1753529175811,0.03,187.91,187.9,50.62984765]
[1753529176012,0.03,187.91,187.9,67.69885476]
[1753529179418,0.03,187.91,187.9,63.52098688]
[1753529179616,0.75,187.91,187.89,4.17786788]
[1753529179819,0.03,187.91,187.9,40.34]
[1753529180324,0.75,187.91,187.9,40.34]
[1753529180699,0.03,187.91,187.9,40.34]
[1753529180897,0.03,187.91,187.9,44.51786788]
[1753529181514,0.03,187.91,187.9,50.37204562]
[1753529182124,0.03,187.91,187.9,67.44105273]
[1753529182303,0.03,187.91,187.9,68.13105273]
[1753529182724,0.03,187.91,187.9,72.30892061]
[1753529182922,0.03,187.93,187.9,72.30892061]
[1753529183100,0.03,187.93,187.92,21.24687499]
[1753529183422,0.03,187.93,187.92,67.36042968]
[1753529183620,0.03,187.93,187.92,68.05042968]
[1753529185499,0.03,187.93,187.92,10.03142257]
[1753529185700,0.75,187.93,187.92,49.69928124]
[1753529186728,0.03,187.93,187.92,49.69928124]
[1753529187424,0.03,187.93,187.92,66.76828835]
[1753529187626,0.03,187.93,187.92,67.45828835]
[1753529188330,0.03,187.95,187.93,17.06900711]
[1753529188530,0.03,187.95,187.94,44.82995258]
[1753529188709,0.03,187.95,187.94,128.0520847]
[1753529188911,0.75,187.95,187.94,91.57786788]
[1753529189231,0.75,187.95,187.94,137.03871495]
[1753529189408,0.75,187.95,187.94,132.86084707]
[1753529189603,0.75,187.95,187.94,137.03871495]
[1753529189604,0.03,187.95,187.94,137.03871495]
[1753529192933,0.03,187.95,187.94,49.63871495]
[1753529195456,0.75,187.95,187.94,49.63871495]
[1753529197447,0.75,187.95,187.93,5.32107319]
[1753529197756,5.91819387,187.95,187.94,40.18]
[1753529197927,5.91819387,187.95,187.92,4.17786788]
[1753529198247,5.84819387,187.94,187.93,40.18]
[1753529198651,5.84819387,187.94,187.91,4.17786788]
[1753529198824,5.84819387,187.93,187.92,40.18]
[1753529199744,5.84819387,187.93,187.92,49.67928124]
[1753529206552,5.84819387,187.93,187.92,40.18]
[1753529209156,5.84819387,187.93,187.92,45.50141336]
[1753529209539,5.84819387,187.93,187.92,49.67928124]
[1753529211136,5.84819387,187.93,187.92,49.73928124]
[1753529212456,5.16819387,187.93,187.92,49.73928124]
[1753529212753,5.16819387,187.94,187.92,49.73928124]
[1753529212951,5.16819387,187.94,187.93,4.17786788]
[1753529214058,5.16819387,187.94,187.93,9.49899808]
[1753529215468,0.03,187.95,187.93,10.21899808]
[1753529215760,0.03,187.95,187.94,43.97786788]
[1753529215955,0.03,187.95,187.94,49.29871495]
[1753529216643,0.03,187.95,187.94,67.08772206]
[1753529221069,0.03,187.95,187.94,66.36772206]
[1753529221572,0.03,187.95,187.94,9.49871495]
[1753529221868,31.16819387,187.93,187.92,0.06]
[1753529222063,31.84819387,187.93,187.92,0.06]
[1753529225766,32.37852904,187.93,187.92,0.06]
[1753529226346,41.87752712,187.93,187.92,0.06]
[1753529227448,37.69965924,187.93,187.92,0.06]
[1753529227646,41.87752712,187.93,187.92,0.06]
[1753529229368,32.37852904,187.93,187.92,0.06]
[1753529229668,31.84819387,187.93,187.92,0.06]
[1753529230443,36.02606175,187.93,187.92,0.06]
[1753529232169,31.84819387,187.93,187.92,0.06]
[1753529235674,31.16819387,187.93,187.92,0.06]
[1753529236852,5.16819387,187.93,187.92,4.90786788]
[1753529237360,5.16819387,187.94,187.92,4.90786788]
[1753529237575,5.16819387,187.94,187.93,9.49899808]
[1753529239076,5.19819387,187.95,187.93,10.16899808]
[1753529239269,5.19819387,187.95,187.94,4.84786788]
[1753529239682,5.19819387,187.95,187.94,10.16871495]
[1753529240879,5.16819387,187.94,187.92,0.06]
[1753529241066,5.16819387,187.93,187.92,0.06]
[1753529241374,10.56639692,187.93,187.92,0.06]
[1753529244780,15.88752712,187.93,187.92,0.06]
[1753529246985,41.88752712,187.93,187.92,0.06]
[1753529249959,37.70965924,187.93,187.92,0.06]
[1753529251085,77.22965924,187.93,187.92,0.06]
[1753529253292,71.90852904,187.93,187.92,0.06]
[1753529256166,71.21852904,187.93,187.92,0.06]
[1753529256359,31.16819387,187.93,187.92,0.06]
[1753529259394,31.69852904,187.93,187.92,0.06]
[1753529260195,32.38852904,187.93,187.92,0.06]
[1753529261808,31.16819387,187.93,187.92,0.06]
[1753529262684,31.69852904,187.93,187.92,0.06]
[1753529263096,32.38852904,187.93,187.92,0.06]
[1753529267700,31.69852904,187.93,187.92,0.06]
[1753529269005,5.16819387,187.93,187.92,4.90786788]
[1753529269184,5.16819387,187.94,187.92,4.90786788]
[1753529269493,5.16819387,187.94,187.93,4.17786788]
[1753529269875,5.16819387,187.94,187.93,4.84786788]
[1753529270088,5.16819387,187.94,187.93,10.16899808]
[1753529272580,5.19819387,187.95,187.93,10.16899808]
[1753529272780,5.19819387,187.95,187.94,10.16871495]
[1753529273379,5.19819387,187.95,187.94,9.49871495]
[1753529273804,5.19819387,187.95,187.94,10.16871495]
[1753529274475,0.03,187.95,187.94,10.16871495]
[1753529274697,5.19819387,187.95,187.94,10.16871495]
[1753529276193,0.03,187.95,187.94,10.16871495]
[1753529280082,5.19819387,187.95,187.94,10.16871495]
[1753529280689,0.03,187.95,187.94,10.16871495]
[1753529280893,5.19819387,187.95,187.92,0.06]
[1753529281087,0.69,187.94,187.92,0.06]
[1753529281587,5.16819387,187.93,187.92,0.06]
[1753529282090,5.85819387,187.93,187.92,0.06]
[1753529282610,10.56639692,187.93,187.92,0.06]
[1753529282902,15.88752712,187.93,187.92,0.06]
[1753529283115,55.32752712,187.93,187.92,0.06]
[1753529283321,50.00639692,187.93,187.92,0.06]
[1753529283485,45.82852904,187.93,187.92,0.06]
[1753529284707,50.00639692,187.93,187.92,0.06]
[1753529285208,45.82852904,187.93,187.92,0.06]
[1753529285542,50.00639692,187.93,187.92,0.06]
[1753529286207,55.32752712,187.93,187.92,0.06]
[1753529286887,72.11221109,187.93,187.92,0.06]
[1753529289094,55.32752712,187.93,187.92,0.06]
[1753529289608,15.88752712,187.93,187.92,0.06]
[1753529289809,45.80852904,187.93,187.92,0.06]
[1753529290231,6.38852904,187.93,187.92,0.06]
[1753529290392,44.58819387,187.93,187.92,0.06]
[1753529291116,5.16819387,187.93,187.92,0.06]
[1753529300904,5.16819387,187.93,187.92,0.74]
[1753529301224,5.19819387,187.93,187.92,0.74]
[1753529301818,5.19819387,187.93,187.92,4.91786788]
[1753529302037,0.03,187.93,187.92,10.23928124]
[1753529303912,5.19819387,187.93,187.92,4.91786788]
[1753529304117,5.19819387,187.93,187.92,0.06]
[1753529309930,5.19819387,187.93,187.92,4.23786788]
[1753529311434,5.19819387,187.93,187.92,0.06]
[1753529311600,5.19819387,187.93,187.92,4.23786788]
[1753529313332,5.19819387,187.93,187.92,0.06]
[1753529316024,5.19819387,187.93,187.92,4.23786788]